Workbook

Sheet Offerte blad_2
A7: Offerte voor het leveren van CLV-systemen in inox 316/304 voor de toe- en afvoer van overdruk ketels.
B9: TOTALE NETTOPRIJS | E9: =B11+B26+B41+B65+B80+B95+B120+B135+B150 -> 1 | F9: CLV-Syste(e)m(en): | I9: =I24+I39+I54+I78+I93+I108+I133+I148+I163 -> 150
A11: 1 | B11: =Calculatie_CLV!I4 -> 1 | C11: x : CLV
B12: CLV-systeem in inox 316/304 voor de toe/afvoer van; | G12: 2x CV Toestel Tzerra Ace 24c
B13: waarvan de technische kenmerken hieronder volgen:
B14: • Fabricaat: Roccheggiani CLV
B15: • Conform TÜV-certificaat 0036 CPR 9811 014
B16: • Binnenwand diameter | E16: : | F16: =MID(Calculatie_CLV!I3,2,3)&" mm" -> 100 mm | G16: in inox 316L, laser gelast, dikte 5/10
B17: • Buitenwand diameter | E17: : | F17: =MID(Calculatie_CLV!I3,5,3)&" mm" -> 150 mm | G17: in inox 304, laser gelast, dikte 5/10
B18: • Aantal verdiepingen | E18: : | F18: =Calculatie_CLV!I5+Calculatie_CLV!I6 -> 2
B19: • Verdiepingshoogte (incl. vloer) : | E19: : | F19: ="Ca. "&TEXT(Calculatie_CLV!I11/1000,"0,0") -> Ca. 3,1 | G19: meter
B20: • Totale systeem hoogte | E20: : | F20: ="Ca. "&TEXT(Calculatie_CLV!T2/1000,"0,0") -> Ca. 6,9 | G20: meter
B21: ="• Inbegrepen: T-stuk aansluiting "&Calculatie_CLV!I7&" mm (luchttoevoer en afvoer van verbrandingsgassen), muursteun, condensaftap, speciaal eindelement en stormkraag." -> • Inbegrepen: T-stuk aansluiting 60/100 mm (luchttoevoer en afvoer van verbrandingsgassen), muursteun, condensaftap, speciaal eindelement en stormkraag.
B24: NETTOPRIJS – per CLV: | E24: =Calculatie_CLV!R63 -> 150 | H24: Totaal | I24: =B11*E24 -> 150
A26: 2 | B26: =INDIRECT("Calculatie_CLV!$AA$4") -> 0 | C26: x : CLV
B27: CLV-systeem in inox 316/304 voor de toe/afvoer van; | G27: 2x CV Toestel Tzerra Ace 24c
B28: waarvan de technische kenmerken hieronder volgen:
B29: • Fabricaat: Roccheggiani CLV
B30: • Conform TÜV-certificaat 0036 CPR 9811 014
B31: • Binnenwand diameter | E31: : | F31: =MID(INDIRECT("'Calculatie_CLV'!AA3"),2,3)&" mm" -> mm | G31: in inox 316L, laser gelast, dikte 5/10
B32: • Buitenwand diameter | E32: : | F32: =MID(INDIRECT("'Calculatie_CLV'!AA3"),5,3)&" mm" -> mm | G32: in inox 304, laser gelast, dikte 5/10
B33: • Aantal verdiepingen | E33: : | F33: =INDIRECT("'Calculatie_CLV'!AA5")+INDIRECT("'Calculatie_CLV'!AA6") -> 0
B34: • Verdiepingshoogte (incl. vloer) : | E34: : | F34: ="Ca. "&TEXT(INDIRECT("'Calculatie_CLV'!AA11")/1000,"0,0") -> Ca. 0,0 | G34: meter
B35: • Totale systeem hoogte | E35: : | F35: ="Ca. "&TEXT(INDIRECT("'Calculatie_CLV'!AL2")/1000,"0,0") -> Ca. 0,0 | G35: meter
B36: ="• Inbegrepen: T-stuk aansluiting "&INDIRECT("'Calculatie_CLV'!AA7")&" mm (luchttoevoer en afvoer van verbrandingsgassen), muursteun, condensaftap, speciaal eindelement en stormkraag." -> • Inbegrepen: T-stuk aansluiting mm (luchttoevoer en afvoer van verbrandingsgassen), muursteun, condensaftap, speciaal eindelement en stormkraag.
B39: NETTOPRIJS – per CLV: | E39: =INDIRECT("Calculatie_CLV!AJ63") -> 0 | H39: Totaal | I39: =B26*E39 -> 0
A41: 3 | B41: =INDIRECT("Calculatie_CLV!AS4") -> 0 | C41: x : CLV
B42: CLV-systeem in inox 316/304 voor de toe/afvoer van; | G42: 2x CV Toestel Tzerra Ace 24c
B43: waarvan de technische kenmerken hieronder volgen:
B44: • Fabricaat: Roccheggiani CLV
B45: • Conform TÜV-certificaat 0036 CPR 9811 014
B46: • Binnenwand diameter | E46: : | F46: =MID(INDIRECT("'Calculatie_CLV'!As3"),2,3)&" mm" -> mm | G46: in inox 316L, laser gelast, dikte 5/10
B47: • Buitenwand diameter | E47: : | F47: =MID(INDIRECT("'Calculatie_CLV'!As3"),5,3)&" mm" -> mm | G47: in inox 304, laser gelast, dikte 5/10
B48: • Aantal verdiepingen | E48: : | F48: =INDIRECT("'Calculatie_CLV'!As5")+INDIRECT("'Calculatie_CLV'!As6") -> 0
B49: • Verdiepingshoogte (incl. vloer) : | E49: : | F49: ="Ca. "&TEXT(INDIRECT("'Calculatie_CLV'!As11")/1000,"0,0") -> Ca. 0,0 | G49: meter
B50: • Totale systeem hoogte | E50: : | F50: ="Ca. "&TEXT(INDIRECT("'Calculatie_CLV'!BD2")/1000,"0,0") -> Ca. 0,0 | G50: meter
B51: ="• Inbegrepen: T-stuk aansluiting "&INDIRECT("'Calculatie_CLV'!As7")&" mm (luchttoevoer en afvoer van verbrandingsgassen), muursteun, condensaftap, speciaal eindelement en stormkraag." -> • Inbegrepen: T-stuk aansluiting mm (luchttoevoer en afvoer van verbrandingsgassen), muursteun, condensaftap, speciaal eindelement en stormkraag.
B54: NETTOPRIJS – per CLV: | E54: =INDIRECT("Calculatie_CLV!BB63") -> 0 | H54: Totaal | I54: =B41*E54 -> 0
A65: 4 | B65: =INDIRECT("Calculatie_CLV!BK4") -> 0 | C65: x : CLV
B66: CLV-systeem in inox 316/304 voor de toe/afvoer van; | G66: 2x CV Toestel Tzerra Ace 24c
B67: waarvan de technische kenmerken hieronder volgen:
B68: • Fabricaat: Roccheggiani CLV
B69: • Conform TÜV-certificaat 0036 CPR 9811 014
B70: • Binnenwand diameter | E70: : | F70: =MID(INDIRECT("'Calculatie_CLV'!BK3"),2,3)&" mm" -> mm | G70: in inox 316L, laser gelast, dikte 5/10
B71: • Buitenwand diameter | E71: : | F71: =MID(INDIRECT("'Calculatie_CLV'!BK3"),5,3)&" mm" -> mm | G71: in inox 304, laser gelast, dikte 5/10
B72: • Aantal verdiepingen | E72: : | F72: =INDIRECT("'Calculatie_CLV'!BK5")+INDIRECT("'Calculatie_CLV'!BK6") -> 0
B73: • Verdiepingshoogte (incl. vloer) : | E73: : | F73: ="Ca. "&TEXT(INDIRECT("'Calculatie_CLV'!BK11")/1000,"0,0") -> Ca. 0,0 | G73: meter
B74: • Totale systeem hoogte | E74: : | F74: ="Ca. "&TEXT(INDIRECT("'Calculatie_CLV'!BV2")/1000,"0,0") -> Ca. 0,0 | G74: meter
B75: ="• Inbegrepen: T-stuk aansluiting "&INDIRECT("'Calculatie_CLV'!BK7")&" mm (luchttoevoer en afvoer van verbrandingsgassen), muursteun, condensaftap, speciaal eindelement en stormkraag." -> • Inbegrepen: T-stuk aansluiting mm (luchttoevoer en afvoer van verbrandingsgassen), muursteun, condensaftap, speciaal eindelement en stormkraag.
B78: NETTOPRIJS – per CLV: | E78: =INDIRECT("Calculatie_CLV!BT63") -> 0 | H78: Totaal | I78: =B65*E78 -> 0
A80: 5 | B80: =INDIRECT("Calculatie_CLV!CC4") -> 0 | C80: x : CLV
B81: CLV-systeem in inox 316/304 voor de toe/afvoer van; | G81: 2x CV Toestel Tzerra Ace 24c
B82: waarvan de technische kenmerken hieronder volgen:
B83: • Fabricaat: Roccheggiani CLV
B84: • Conform TÜV-certificaat 0036 CPR 9811 014
B85: • Binnenwand diameter | E85: : | F85: =MID(INDIRECT("'Calculatie_CLV'!CC3"),2,3)&" mm" -> mm | G85: in inox 316L, laser gelast, dikte 5/10
B86: • Buitenwand diameter | E86: : | F86: =MID(INDIRECT("'Calculatie_CLV'!CC3"),5,3)&" mm" -> mm | G86: in inox 304, laser gelast, dikte 5/10
B87: • Aantal verdiepingen | E87: : | F87: =INDIRECT("'Calculatie_CLV'!CC5")+INDIRECT("'Calculatie_CLV'!CC6") -> 0
B88: • Verdiepingshoogte (incl. vloer) : | E88: : | F88: ="Ca. "&TEXT(INDIRECT("'Calculatie_CLV'!CC11")/1000,"0,0") -> Ca. 0,0 | G88: meter
B89: • Totale systeem hoogte | E89: : | F89: ="Ca. "&TEXT(INDIRECT("'Calculatie_CLV'!CN2")/1000,"0,0") -> Ca. 0,0 | G89: meter
B90: ="• Inbegrepen: T-stuk aansluiting "&INDIRECT("'Calculatie_CLV'!CC7")&" mm (luchttoevoer en afvoer van verbrandingsgassen), muursteun, condensaftap, speciaal eindelement en stormkraag." -> • Inbegrepen: T-stuk aansluiting mm (luchttoevoer en afvoer van verbrandingsgassen), muursteun, condensaftap, speciaal eindelement en stormkraag.
B93: NETTOPRIJS – per CLV: | E93: =INDIRECT("Calculatie_CLV!CL63") -> 0 | H93: Totaal | I93: =B80*E93 -> 0
A95: 6 | B95: =INDIRECT("Calculatie_CLV!CU4") -> 0 | C95: x : CLV
B96: CLV-systeem in inox 316/304 voor de toe/afvoer van; | G96: 2x CV Toestel Tzerra Ace 24c
B97: waarvan de technische kenmerken hieronder volgen:
B98: • Fabricaat: Roccheggiani CLV
B99: • Conform TÜV-certificaat 0036 CPR 9811 014
B100: • Binnenwand diameter | E100: : | F100: =MID(INDIRECT("'Calculatie_CLV'!CU3"),2,3)&" mm" -> mm | G100: in inox 316L, laser gelast, dikte 5/10
B101: • Buitenwand diameter | E101: : | F101: =MID(INDIRECT("'Calculatie_CLV'!CU3"),5,3)&" mm" -> mm | G101: in inox 304, laser gelast, dikte 5/10
B102: • Aantal verdiepingen | E102: : | F102: =INDIRECT("'Calculatie_CLV'!CU5")+INDIRECT("'Calculatie_CLV'!CU6") -> 0
B103: • Verdiepingshoogte (incl. vloer) : | E103: : | F103: ="Ca. "&TEXT(INDIRECT("'Calculatie_CLV'!CU11")/1000,"0,0") -> Ca. 0,0 | G103: meter
B104: • Totale systeem hoogte | E104: : | F104: ="Ca. "&TEXT(INDIRECT("'Calculatie_CLV'!DF2")/1000,"0,0") -> Ca. 0,0 | G104: meter
B105: ="• Inbegrepen: T-stuk aansluiting "&INDIRECT("'Calculatie_CLV'!CU7")&" mm (luchttoevoer en afvoer van verbrandingsgassen), muursteun, condensaftap, speciaal eindelement en stormkraag." -> • Inbegrepen: T-stuk aansluiting mm (luchttoevoer en afvoer van verbrandingsgassen), muursteun, condensaftap, speciaal eindelement en stormkraag.
B108: NETTOPRIJS – per CLV: | E108: =INDIRECT("Calculatie_CLV!DD63") -> 0 | H108: Totaal | I108: =B95*E108 -> 0
A120: 7 | C120: x : CLV
B121: CLV-systeem in inox 316/304 voor de toe/afvoer van; | G121: 2x CV Toestel Tzerra Ace 24c
B122: waarvan de technische kenmerken hieronder volgen:
B123: • Fabricaat: Roccheggiani CLV
B124: • Conform TÜV-certificaat 0036 CPR 9811 014
B125: • Binnenwand diameter | E125: : | F125: 100 | G125: in inox 316L, laser gelast, dikte 5/10
B126: • Buitenwand diameter | E126: : | F126: 150 | G126: in inox 304, laser gelast, dikte 5/10
B127: • Aantal verdiepingen | E127: : | F127: 2
B128: • Verdiepingshoogte (incl. vloer) : | E128: : | F128: ca. 3 | G128: meter
B129: • Totale systeem hoogte | E129: : | F129: ca. 7 | G129: meter
B130: • Inbegrepen: T-stuk aansluiting 60/100 mm (luchttoevoer en afvoer van verbrandingsgassen), muursteun, condensaftap, speciaal eindelement en stormkraag.
B133: NETTOPRIJS – per CLV: | H133: Totaal | I133: =B120*E133 -> 0
A135: 8 | C135: x : CLV
B136: CLV-systeem in inox 316/304 voor de toe/afvoer van; | G136: 2x CV Toestel Tzerra Ace 24c
B137: waarvan de technische kenmerken hieronder volgen:
B138: • Fabricaat: Roccheggiani CLV
B139: • Conform TÜV-certificaat 0036 CPR 9811 014
B140: • Binnenwand diameter | E140: : | F140: 100 | G140: in inox 316L, laser gelast, dikte 5/10
B141: • Buitenwand diameter | E141: : | F141: 150 | G141: in inox 304, laser gelast, dikte 5/10
B142: • Aantal verdiepingen | E142: : | F142: 2
B143: • Verdiepingshoogte (incl. vloer) : | E143: : | F143: ca. 3 | G143: meter
B144: • Totale systeem hoogte | E144: : | F144: ca. 7 | G144: meter
B145: • Inbegrepen: T-stuk aansluiting 60/100 mm (luchttoevoer en afvoer van verbrandingsgassen), muursteun, condensaftap, speciaal eindelement en stormkraag.
B148: NETTOPRIJS – per CLV: | H148: Totaal | I148: =B135*E148 -> 0
A150: 9 | C150: x : CLV
B151: CLV-systeem in inox 316/304 voor de toe/afvoer van; | G151: 2x CV Toestel Tzerra Ace 24c
B152: waarvan de technische kenmerken hieronder volgen:
B153: • Fabricaat: Roccheggiani CLV
B154: • Conform TÜV-certificaat 0036 CPR 9811 014
B155: • Binnenwand diameter | E155: : | F155: 100 | G155: in inox 316L, laser gelast, dikte 5/10
B156: • Buitenwand diameter | E156: : | F156: 150 | G156: in inox 304, laser gelast, dikte 5/10
B157: • Aantal verdiepingen | E157: : | F157: 2
B158: • Verdiepingshoogte (incl. vloer) : | E158: : | F158: ca. 3 | G158: meter
B159: • Totale systeem hoogte | E159: : | F159: ca. 7 | G159: meter
B160: • Inbegrepen: T-stuk aansluiting 60/100 mm (luchttoevoer en afvoer van verbrandingsgassen), muursteun, condensaftap, speciaal eindelement en stormkraag.
B163: NETTOPRIJS – per CLV: | H163: Totaal | I163: =B150*E163 -> 0

Sheet Calculatie_CLV
B1: NAW gegevens | G1: 1 | M1: Aantal | N1: Element | O1: Element | P1: Omschrijving | Q1: Groothandel Prijs | R1: Totaal Prijs | S1: Hoogte(mm) | T1: Hoogte Totaal(mm) | Y1: 2 | AQ1: 3 | BI1: 4 | CA1: 5 | CS1: 6
B2: Bedrijfsnaam | C2: : | F2: 0.43 | T2: =T57+(T39*P39)+(P26*T26)+T14 -> 6860
B3: Contactpersoon | C3: : | H3: CLV Type | I3: Ø100150 | K3: =VALUE(RIGHT(I3,LEN(I3)-1)) -> 100150 | M3: 1 | N3: =O3&""&K$3 -> DPC 410100150 | O3: DPC 410 | P3: =IFERROR(VLOOKUP(N3,PrijslijstDUMP!$A$1:$H$416,3,FALSE),0) -> DPC-CLV Uitmonding d.100*150 | Q3: =IFERROR(VLOOKUP(N3,PrijslijstDUMP!$A$1:$H$416,8,FALSE),0) -> 5 | R3: =IFERROR(M3*Q3,0) -> 5 | S3: =IFERROR(VLOOKUP(N3,PrijslijstDUMP!$A$1:$H$416,4,FALSE),0) -> 440 | T3: =IFERROR(M3*S3,0) -> 440
B4: Functie | C4: : | H4: Aantal Strangen | I4: 1 | M4: 1 | N4: =O4&""&K$3 -> DPC 356100150 | O4: DPC 356 | P4: =IFERROR(VLOOKUP(N4,PrijslijstDUMP!$A$1:$H$416,3,FALSE),0) -> Stormkraag RVS DP100/SPG150 | Q4: =IFERROR(VLOOKUP(N4,PrijslijstDUMP!$A$1:$H$416,8,FALSE),0) -> 5 | R4: =IFERROR(M4*Q4,0) -> 5
B5: Adres | C5: : | H5: Aantal Etages met RGA | I5: 2 | M5: 1 | N5: DPC 353100150 | O5: DPC 353 | P5: =IFERROR(VLOOKUP(N5,PrijslijstDUMP!$A$1:$H$416,3,FALSE),0) -> SPG DDV plat dak d.150 | Q5: =IFERROR(VLOOKUP(N5,PrijslijstDUMP!$A$1:$H$416,8,FALSE),0) -> 5 | R5: 5
B6: Postcode | C6: : | H6: Aantal Loos | I6: 0 | M6: 0 | N6: DPC 431100150 | O6: DPC 431 | P6: =IFERROR(VLOOKUP(N6,PrijslijstDUMP!$A$1:$H$416,3,FALSE),0) -> DPC-CLV Verlengpijp Lg 250 d.100*150 | Q6: =IFERROR(VLOOKUP(N6,PrijslijstDUMP!$A$1:$H$416,8,FALSE),0) -> 5 | R6: 0 | S6: =IFERROR(VLOOKUP(N6,PrijslijstDUMP!$A$1:$H$416,4,FALSE),0) -> 190 | T6: =M6*S6 -> 0
B7: Plaats | C7: : | H7: Aansluiting | I7: 60/100 | K7: =_xlfn.IFS(K8="60/100Enkel","DPC 456",K8="80/125Enkel","DPC 420",K8="80/80Enkel","DPC 403",K8="60/100Dubbel","DPC 445",K8="80/125Dubbel","DPC 437",K8="80/80Dubbel","DPC 428") -> DPC 456 | M7: 1 | N7: DPC 402100150 | O7: DPC 402 | P7: =IFERROR(VLOOKUP(N7,PrijslijstDUMP!$A$1:$H$416,3,FALSE),0) -> DPC-CLV Verlengpijp Lg 500 d.100*150 | Q7: =IFERROR(VLOOKUP(N7,PrijslijstDUMP!$A$1:$H$416,8,FALSE),0) -> 5 | R7: 5 | S7: =IFERROR(VLOOKUP(N7,PrijslijstDUMP!$A$1:$H$416,4,FALSE),0) -> 440 | T7: =IFERROR(M7*S7,0) -> 440
B8: E-mail | C8: : | H8: Enkel/Dubbel | I8: Enkel | K8: =I7&""&I8 -> 60/100Enkel | M8: 1 | N8: DPC 401100150 | O8: DPC 401 | P8: =IFERROR(VLOOKUP(N8,PrijslijstDUMP!$A$1:$H$416,3,FALSE),0) -> DPC-CLV Verlengpijp Lg 1000 d.100*150 | Q8: =IFERROR(VLOOKUP(N8,PrijslijstDUMP!$A$1:$H$416,8,FALSE),0) -> 5 | R8: 5 | S8: =IFERROR(VLOOKUP(N8,PrijslijstDUMP!$A$1:$H$416,4,FALSE),0) -> 940 | T8: 940
B9: Telefoon nr. | C9: : | H9: Vloer Dikte | I9: 500 | N9: 100150 | P9: =IFERROR(VLOOKUP(N9,PrijslijstDUMP!$A$1:$H$416,3,FALSE),0) -> 0 | Q9: =IFERROR(VLOOKUP(N9,PrijslijstDUMP!$A$1:$H$416,8,FALSE),0) -> 0 | R9: 0 | S9: =IFERROR(VLOOKUP(N9,PrijslijstDUMP!$A$1:$H$416,4,FALSE),0) -> 0 | T9: 0
H10: Plafond Hoogte | I10: 2600 | M10: =IF(O10<>"",1,"") ->  | N10: 100150 | P10: =IFERROR(VLOOKUP(N10,PrijslijstDUMP!$A$1:$H$416,3,FALSE),0) -> 0 | Q10: =IFERROR(VLOOKUP(N10,PrijslijstDUMP!$A$1:$H$416,8,FALSE),0) -> 0 | R10: 0 | S10: =IFERROR(VLOOKUP(N10,PrijslijstDUMP!$A$1:$H$416,4,FALSE),0) -> 0 | T10: 0
B11: Betreft/Proj.nr | C11: : | H11: Totaal VloerH. | I11: =I9+I10 -> 3100 | M11: =IF(O11<>"",1,"") ->  | N11: 100150 | P11: =IFERROR(VLOOKUP(N11,PrijslijstDUMP!$A$1:$H$416,3,FALSE),0) -> 0 | Q11: =IFERROR(VLOOKUP(N11,PrijslijstDUMP!$A$1:$H$416,8,FALSE),0) -> 0 | R11: 0 | S11: =IFERROR(VLOOKUP(N11,PrijslijstDUMP!$A$1:$H$416,4,FALSE),0) -> 0 | T11: 0
B12: Offerte nr. | C12: : | M12: =IF(O12<>"",1,"") ->  | N12: 100150 | P12: =IFERROR(VLOOKUP(N12,PrijslijstDUMP!$A$1:$H$416,3,FALSE),0) -> 0 | Q12: =IFERROR(VLOOKUP(N12,PrijslijstDUMP!$A$1:$H$416,8,FALSE),0) -> 0 | R12: 0 | S12: =IFERROR(VLOOKUP(N12,PrijslijstDUMP!$A$1:$H$416,4,FALSE),0) -> 0 | T12: 0
B14: Accountmanager | C14: : | H14: =H26+P26*(I16+J14) -> 6200 | I14: Vloer | J14: =I9 -> 500 | T14: =SUM(T3:T13) -> 1820
Q15: Prijs Totaal | R15: =SUM(R3:R13) -> 25
I16: =I10 -> 2600 | M16: 1 | N16: =O16&""&K$3 -> DPC 731100150 | O16: DPC 731 | P16: =IFERROR(VLOOKUP(N16,PrijslijstDUMP!$A$1:$H$416,3,FALSE),0) -> Muurbeugel DP100/SPG150 | Q16: =IFERROR(VLOOKUP(N16,PrijslijstDUMP!$A$1:$H$416,8,FALSE),0) -> 5 | R16: =IFERROR(M16*Q16,0) -> 5
B17: Deze kleur cellen invullen of aanpassen | M17: 1 | N17: =O17&""&K$3 -> DPC 405100150 | O17: DPC 405 | P17: =IFERROR(VLOOKUP(N17,PrijslijstDUMP!$A$1:$H$416,3,FALSE),0) -> DPC-CLV Verstelbaar elt d.100*150 | Q17: =IFERROR(VLOOKUP(N17,PrijslijstDUMP!$A$1:$H$416,8,FALSE),0) -> 5 | R17: =IFERROR(M17*Q17,0) -> 5 | S17: 280 | T17: =M17*S17 -> 280
M18: 0 | N18: =O18&""&K$3 -> DPC 431100150 | O18: DPC 431 | P18: =IFERROR(VLOOKUP(N18,PrijslijstDUMP!$A$1:$H$416,3,FALSE),0) -> DPC-CLV Verlengpijp Lg 250 d.100*150 | Q18: =IFERROR(VLOOKUP(N18,PrijslijstDUMP!$A$1:$H$416,8,FALSE),0) -> 5 | R18: 0 | S18: 190 | T18: =M18*S18 -> 0
M19: 0 | N19: DPC 402100150 | O19: DPC 402 | P19: =IFERROR(VLOOKUP(N19,PrijslijstDUMP!$A$1:$H$416,3,FALSE),0) -> DPC-CLV Verlengpijp Lg 500 d.100*150 | Q19: =IFERROR(VLOOKUP(N19,PrijslijstDUMP!$A$1:$H$416,8,FALSE),0) -> 5 | R19: 0 | S19: 440 | T19: =M19*S19 -> 0
I20: Hoogte | M20: 3 | N20: DPC 401100150 | O20: DPC 401 | P20: =IFERROR(VLOOKUP(N20,PrijslijstDUMP!$A$1:$H$416,3,FALSE),0) -> DPC-CLV Verlengpijp Lg 1000 d.100*150 | Q20: =IFERROR(VLOOKUP(N20,PrijslijstDUMP!$A$1:$H$416,8,FALSE),0) -> 5 | R20: 15 | S20: 940 | T20: =M20*S20 -> 2820
B21: Calculatie: | M21: =IF(O21<>"",1,"") ->  | N21: 100150 | P21: =IFERROR(VLOOKUP(N21,PrijslijstDUMP!$A$1:$H$416,3,FALSE),0) -> 0 | Q21: =IFERROR(VLOOKUP(N21,PrijslijstDUMP!$A$1:$H$416,8,FALSE),0) -> 0 | R21: 0 | S21: =IFERROR(VLOOKUP(N21,PrijslijstDUMP!$A$1:$H$416,4,FALSE),0) -> 0 | T21: =IFERROR(M21*S21,0) -> 0
M22: =IF(O22<>"",1,"") ->  | N22: 100150 | P22: =IFERROR(VLOOKUP(N22,PrijslijstDUMP!$A$1:$H$416,3,FALSE),0) -> 0 | Q22: =IFERROR(VLOOKUP(N22,PrijslijstDUMP!$A$1:$H$416,8,FALSE),0) -> 0 | R22: 0 | S22: =IFERROR(VLOOKUP(N22,PrijslijstDUMP!$A$1:$H$416,4,FALSE),0) -> 0 | T22: =IFERROR(M22*S22,0) -> 0
M23: =IF(O23<>"",1,"") ->  | N23: 100150 | P23: =IFERROR(VLOOKUP(N23,PrijslijstDUMP!$A$1:$H$416,3,FALSE),0) -> 0 | Q23: =IFERROR(VLOOKUP(N23,PrijslijstDUMP!$A$1:$H$416,8,FALSE),0) -> 0 | R23: 0 | S23: =IFERROR(VLOOKUP(N23,PrijslijstDUMP!$A$1:$H$416,4,FALSE),0) -> 0 | T23: =IFERROR(M23*S23,0) -> 0
M24: =IF(O24<>"",1,"") ->  | N24: 100150 | P24: =IFERROR(VLOOKUP(N24,PrijslijstDUMP!$A$1:$H$416,3,FALSE),0) -> 0 | Q24: =IFERROR(VLOOKUP(N24,PrijslijstDUMP!$A$1:$H$416,8,FALSE),0) -> 0 | R24: 0 | S24: =IFERROR(VLOOKUP(N24,PrijslijstDUMP!$A$1:$H$416,4,FALSE),0) -> 0 | T24: =IFERROR(M24*S24,0) -> 0
H26: =H39+P39*(I28+J26) -> 6200 | I26: Vloer | J26: =I9 -> 500 | P26: =I6 -> 0 | Q26: Prijs 1 Vloer | R26: =SUM(R16:R25) -> 25 | T26: =_xlfn.IFS(SUM(T16:T25)=0,"",SUM(T16:T25)>0,SUM(T16:T25)) -> 3100
P27: Verdiepingsvloer Loos zonder Rookgas aansluiting | Q27: Prijs Totaal | R27: =IFERROR(P26*R26,"NVT") -> 0 | T27: =IF(I11=T26,"Akkoord","Hoogte Aanpassen") -> Akkoord
I28: =I10 -> 2600 | M28: 1 | N28: =O28&K$3 -> DPC 731100150 | O28: DPC 731 | P28: =IFERROR(VLOOKUP(N28,PrijslijstDUMP!$A$1:$H$416,3,FALSE),0) -> Muurbeugel DP100/SPG150 | Q28: =IFERROR(VLOOKUP(N28,PrijslijstDUMP!$A$1:$H$416,8,FALSE),0) -> 5 | R28: =IFERROR(M28*Q28,0) -> 5
M29: 1 | N29: =O29&K$3 -> DPC 405100150 | O29: DPC 405 | P29: =IFERROR(VLOOKUP(N29,PrijslijstDUMP!$A$1:$H$416,3,FALSE),0) -> DPC-CLV Verstelbaar elt d.100*150 | Q29: =IFERROR(VLOOKUP(N29,PrijslijstDUMP!$A$1:$H$416,8,FALSE),0) -> 5 | R29: 5 | S29: 300 | T29: =M29*S29 -> 300
M30: 1 | N30: =O30&K$3 -> DPC 456100150 | O30: =K$7 -> DPC 456 | P30: =IFERROR(VLOOKUP(N30,PrijslijstDUMP!$A$1:$H$416,3,FALSE),0) -> CLV T-st 87° d100*150+conc aftak. 60*100 | Q30: =IFERROR(VLOOKUP(N30,PrijslijstDUMP!$A$1:$H$416,8,FALSE),0) -> 5 | R30: 5 | S30: 290 | T30: =M30*S30 -> 290
M31: 1 | N31: =O31&K$3 -> DPC 431100150 | O31: DPC 431 | P31: =IFERROR(VLOOKUP(N31,PrijslijstDUMP!$A$1:$H$416,3,FALSE),0) -> DPC-CLV Verlengpijp Lg 250 d.100*150 | Q31: =IFERROR(VLOOKUP(N31,PrijslijstDUMP!$A$1:$H$416,8,FALSE),0) -> 5 | R31: 5 | S31: 190 | T31: =M31*S31 -> 190
I32: Hoogte | M32: 1 | N32: DPC 402100150 | O32: DPC 402 | P32: =IFERROR(VLOOKUP(N32,PrijslijstDUMP!$A$1:$H$416,3,FALSE),0) -> DPC-CLV Verlengpijp Lg 500 d.100*150 | Q32: =IFERROR(VLOOKUP(N32,PrijslijstDUMP!$A$1:$H$416,8,FALSE),0) -> 5 | R32: 5 | S32: 440 | T32: =M32*S32 -> 440
M33: 2 | N33: DPC 401100150 | O33: DPC 401 | P33: =IFERROR(VLOOKUP(N33,PrijslijstDUMP!$A$1:$H$416,3,FALSE),0) -> DPC-CLV Verlengpijp Lg 1000 d.100*150 | Q33: =IFERROR(VLOOKUP(N33,PrijslijstDUMP!$A$1:$H$416,8,FALSE),0) -> 5 | R33: 10 | S33: 940 | T33: =M33*S33 -> 1880
M34: =IF(O34<>"",1,"") ->  | N34: 100150 | P34: =IFERROR(VLOOKUP(N34,PrijslijstDUMP!$A$1:$H$416,3,FALSE),0) -> 0 | Q34: =IFERROR(VLOOKUP(N34,PrijslijstDUMP!$A$1:$H$416,8,FALSE),0) -> 0 | R34: 0 | T34: =IFERROR(M34*S34,0) -> 0
M35: =IF(O35<>"",1,"") ->  | N35: 100150 | P35: =IFERROR(VLOOKUP(N35,PrijslijstDUMP!$A$1:$H$416,3,FALSE),0) -> 0 | Q35: =IFERROR(VLOOKUP(N35,PrijslijstDUMP!$A$1:$H$416,8,FALSE),0) -> 0 | R35: 0 | S35: =IFERROR(VLOOKUP(N35,PrijslijstDUMP!$A$1:$H$416,4,FALSE),0) -> 0 | T35: =IFERROR(M35*S35,0) -> 0
M36: =IF(O36<>"",1,"") ->  | N36: 100150 | P36: =IFERROR(VLOOKUP(N36,PrijslijstDUMP!$A$1:$H$416,3,FALSE),0) -> 0 | Q36: =IFERROR(VLOOKUP(N36,PrijslijstDUMP!$A$1:$H$416,8,FALSE),0) -> 0 | R36: 0 | S36: =IFERROR(VLOOKUP(N36,PrijslijstDUMP!$A$1:$H$416,4,FALSE),0) -> 0 | T36: =IFERROR(M36*S36,0) -> 0
M37: =IF(O37<>"",1,"") ->  | N37: 100150 | P37: =IFERROR(VLOOKUP(N37,PrijslijstDUMP!$A$1:$H$416,3,FALSE),0) -> 0 | Q37: =IFERROR(VLOOKUP(N37,PrijslijstDUMP!$A$1:$H$416,8,FALSE),0) -> 0 | R37: 0 | S37: =IFERROR(VLOOKUP(N37,PrijslijstDUMP!$A$1:$H$416,4,FALSE),0) -> 0 | T37: =IFERROR(M37*S37,0) -> 0
H39: =I41+J39 -> 3100 | I39: Vloer | J39: =I9 -> 500 | P39: =I5-1 -> 1 | Q39: Prijs 1 Vloer | R39: =SUM(R28:R37) -> 35 | T39: =SUM(T28:T38) -> 3100
P40: Verdiepingsvloer met een Rookgas aansluiting | Q40: Prijs Totaal | R40: =P39*R39 -> 35 | T40: =IF(I11=T39,"Akkoord","Hoogte Aanpassen") -> Akkoord
I41: =I10 -> 2600 | M41: 1 | N41: =O41&""&K$3 -> DPC 731100150 | O41: DPC 731 | P41: =IFERROR(VLOOKUP(N41,PrijslijstDUMP!$A$1:$H$416,3,FALSE),0) -> Muurbeugel DP100/SPG150 | Q41: =IFERROR(VLOOKUP(N41,PrijslijstDUMP!$A$1:$H$416,8,FALSE),0) -> 5 | R41: =IFERROR(M41*Q41,0) -> 5
M42: 1 | N42: =O42&""&K$3 -> DPC 456100150 | O42: =K$7 -> DPC 456 | P42: =IFERROR(VLOOKUP(N42,PrijslijstDUMP!$A$1:$H$416,3,FALSE),0) -> CLV T-st 87° d100*150+conc aftak. 60*100 | Q42: =IFERROR(VLOOKUP(N42,PrijslijstDUMP!$A$1:$H$416,8,FALSE),0) -> 5 | R42: 5 | S42: =IFERROR(VLOOKUP(N42,PrijslijstDUMP!$A$1:$H$416,4,FALSE),0) -> 290 | T42: =M42*S42 -> 290
M43: 1 | N43: DPC 401100150 | O43: DPC 401 | P43: =IFERROR(VLOOKUP(N43,PrijslijstDUMP!$A$1:$H$416,3,FALSE),0) -> DPC-CLV Verlengpijp Lg 1000 d.100*150 | Q43: =IFERROR(VLOOKUP(N43,PrijslijstDUMP!$A$1:$H$416,8,FALSE),0) -> 5 | R43: 5 | S43: =IFERROR(VLOOKUP(N43,PrijslijstDUMP!$A$1:$H$416,4,FALSE),0) -> 940 | T43: 940
M44: 1 | N44: DPC 412100150 | O44: DPC 412 | P44: =IFERROR(VLOOKUP(N44,PrijslijstDUMP!$A$1:$H$416,3,FALSE),0) -> DPC-CLV Muursteun d.100*150 | Q44: =IFERROR(VLOOKUP(N44,PrijslijstDUMP!$A$1:$H$416,8,FALSE),0) -> 5 | R44: 5 | S44: =IFERROR(VLOOKUP(N44,PrijslijstDUMP!$A$1:$H$416,4,FALSE),0) -> 190 | T44: 190
I45: Hoogte | M45: 1 | N45: DPC 434100150 | O45: DPC 434 | P45: =IFERROR(VLOOKUP(N45,PrijslijstDUMP!$A$1:$H$416,3,FALSE),0) -> DPC-CLV Inspectie elt d.100*150 | Q45: =IFERROR(VLOOKUP(N45,PrijslijstDUMP!$A$1:$H$416,8,FALSE),0) -> 5 | R45: 5 | S45: =IFERROR(VLOOKUP(N45,PrijslijstDUMP!$A$1:$H$416,4,FALSE),0) -> 265 | T45: 265
M46: 1 | N46: DPC 409100150 | O46: DPC 409 | P46: =IFERROR(VLOOKUP(N46,PrijslijstDUMP!$A$1:$H$416,3,FALSE),0) -> DPC-CLV aftap d.100*150 | Q46: =IFERROR(VLOOKUP(N46,PrijslijstDUMP!$A$1:$H$416,8,FALSE),0) -> 5 | R46: 5 | S46: =IFERROR(VLOOKUP(N46,PrijslijstDUMP!$A$1:$H$416,4,FALSE),0) -> 255 | T46: 255
N47: 100150 | P47: =IFERROR(VLOOKUP(N47,PrijslijstDUMP!$A$1:$H$416,3,FALSE),0) -> 0 | Q47: =IFERROR(VLOOKUP(N47,PrijslijstDUMP!$A$1:$H$416,8,FALSE),0) -> 0 | R47: 0 | S47: =IFERROR(VLOOKUP(N47,PrijslijstDUMP!$A$1:$H$416,4,FALSE),0) -> 0 | T47: 0
N48: 100150 | P48: =IFERROR(VLOOKUP(N48,PrijslijstDUMP!$A$1:$H$416,3,FALSE),0) -> 0 | Q48: =IFERROR(VLOOKUP(N48,PrijslijstDUMP!$A$1:$H$416,8,FALSE),0) -> 0 | R48: 0 | S48: =IFERROR(VLOOKUP(N48,PrijslijstDUMP!$A$1:$H$416,4,FALSE),0) -> 0 | T48: 0
N49: 100150 | P49: =IFERROR(VLOOKUP(N49,PrijslijstDUMP!$A$1:$H$416,3,FALSE),0) -> 0 | Q49: =IFERROR(VLOOKUP(N49,PrijslijstDUMP!$A$1:$H$416,8,FALSE),0) -> 0 | R49: 0 | S49: =IFERROR(VLOOKUP(N49,PrijslijstDUMP!$A$1:$H$416,4,FALSE),0) -> 0 | T49: 0
P50: =IFERROR(VLOOKUP(N50,PrijslijstDUMP!$A$1:$H$416,3,FALSE),0) -> 0 | Q50: =IFERROR(VLOOKUP(N50,PrijslijstDUMP!$A$1:$H$416,8,FALSE),0) -> 0 | R50: 0 | S50: =IFERROR(VLOOKUP(N50,PrijslijstDUMP!$A$1:$H$416,4,FALSE),0) -> 0
P51: =IFERROR(VLOOKUP(N51,PrijslijstDUMP!$A$1:$H$416,3,FALSE),0) -> 0 | Q51: =IFERROR(VLOOKUP(N51,PrijslijstDUMP!$A$1:$H$416,8,FALSE),0) -> 0 | R51: 0 | S51: =IFERROR(VLOOKUP(N51,PrijslijstDUMP!$A$1:$H$416,4,FALSE),0) -> 0
M52: =IF(T2>14000,"Let op! Systeem hoger dan veertien meter. Extra muursteun inpassen!","") ->  | Q52: =IFERROR(VLOOKUP(N52,PrijslijstDUMP!$A$1:$H$416,8,FALSE),0) -> 0 | R52: 0 | S52: =IFERROR(VLOOKUP(N52,PrijslijstDUMP!$A$1:$H$416,4,FALSE),0) -> 0
Q53: =IFERROR(VLOOKUP(N53,PrijslijstDUMP!$A$1:$H$416,8,FALSE),0) -> 0 | R53: 0 | S53: =IFERROR(VLOOKUP(N53,PrijslijstDUMP!$A$1:$H$416,4,FALSE),0) -> 0
Q54: =IFERROR(VLOOKUP(N54,PrijslijstDUMP!$A$1:$H$416,8,FALSE),0) -> 0 | R54: 0 | S54: =IFERROR(VLOOKUP(N54,PrijslijstDUMP!$A$1:$H$416,4,FALSE),0) -> 0
Q55: =IFERROR(VLOOKUP(N55,PrijslijstDUMP!$A$1:$H$416,8,FALSE),0) -> 0 | R55: 0 | S55: =IFERROR(VLOOKUP(N55,PrijslijstDUMP!$A$1:$H$416,4,FALSE),0) -> 0
T57: =SUM(T41:T56) -> 1940
C58: : | P58: Begane Grond | R58: =SUM(R41:R56) -> 30
C59: :
C60: : | Q60: BRUTO prijs | R60: =R15+R27+R40+R58 -> 90
C61: : | P61: Extra marge | Q61: 0.5 | R61: =R60*(1+Q61) -> 135
C62: : | P62: Installateursprijs | Q62: 0.9 | R62: =R61/Q62 -> 150
C63: : | Q63: AANBIEDINGSPRIJS P.ST | R63: =R62 -> 150
C64: : | Q64: AANBIEDINGSPRIJS TOT | R64: =I4*R63 -> 150 | S64: CLV | T64: =I4 -> 1

Sheet PrijslijstDUMP (hidden)
A1: ARTICLE | C1: DESCRIPTION | D1: Werklengte (in mm) | E1: DRAWING | F1: DIAMETER Øi / Øe (MM) | G1: PRESSURE LEVEL | H1: NETTO PRICE M&G
A2: DPC 401100150 | C2: DPC-CLV Verlengpijp Lg 1000 d.100*150 | D2: =1000-60 -> 940 | F2: 100/150 | G2: P1 | H2: 5
A3: DPC 401120180 | C3: DPC-CLV Verlengpijp Lg 1000 d.120*180 | D3: 940 | F3: 120/180 | G3: P1 | H3: 6
A4: DPC 401130200 | C4: DPC-CLV Verlengpijp Lg 1000 d.130*200 | D4: 940 | F4: 130/200 | G4: P1 | H4: 7
A5: DPC 401150230 | C5: DPC-CLV Verlengpijp Lg 1000 d.150*230 | D5: 940 | F5: 150/230 | G5: P1 | H5: 8
A6: DPC 401180250 | C6: DPC-CLV Verlengpijp Lg 1000 d.180*250 | D6: 940 | F6: 180/250 | G6: P1 | H6: 9
A7: DPC 401200350 | C7: CLV Verlengpijp Lg 1m d.200*350 | D7: 940 | F7: 200/350 | G7: P1 | H7: 10
A8: DPC 401230350 | C8: CLV Verlengpijp Lg 1m d.230*350 | D8: 940 | F8: 230/350 | G8: P1 | H8: 11
A9: DPC 401250400 | C9: CLV Verlengpijp Lg 1m d.250*400 | D9: 940 | F9: 250/400 | G9: P1 | H9: 12
A10: DPC 402100150 | C10: DPC-CLV Verlengpijp Lg 500 d.100*150 | D10: =500-60 -> 440 | F10: 100/150 | G10: P1 | H10: 5
A11: DPC 402120180 | C11: DPC-CLV Verlengpijp Lg 500 d.120*180 | D11: 440 | F11: 120/180 | G11: P1 | H11: 6
A12: DPC 402130200 | C12: DPC-CLV Verlengpijp Lg 500 d.130*200 | D12: 440 | F12: 130/200 | G12: P1 | H12: 7
A13: DPC 402150230 | C13: DPC-CLV Verlengpijp Lg 500 d.150*230 | D13: 440 | F13: 150/230 | G13: P1 | H13: 8
A14: DPC 402180250 | C14: DPC-CLV Verlengpijp Lg 500 d.180*250 | D14: 440 | F14: 180/250 | G14: P1 | H14: 9
A15: DPC 402200350 | C15: DPC-CLV Verlengpijp Lg 500 d.200*350 | D15: 440 | F15: 200/350 | G15: P1 | H15: 10
A16: DPC 402230350 | C16: DPC-CLV Verlengpijp Lg 500 d.230*350 | D16: 440 | F16: 230/350 | G16: P1 | H16: 11
A17: DPC 402250400 | C17: DPC-CLV Verlengpijp Lg 500 d.250*400 | D17: 440 | F17: 250/400 | G17: P1 | H17: 12
A18: DPC 403100150 | C18: CLV T-stuk 90° d.100*150+aftakking 2*80 | D18: =500-60 -> 440 | F18: 100/150 | G18: P1 | H18: 5
A19: DPC 403120180 | C19: CLV T-stuk 90° d.120*180+aftakking 2*80 | D19: 440 | F19: 120/180 | G19: P1 | H19: 6
A20: DPC 403130200 | C20: CLV T-stuk 90° d.130*200+aftakking 2*80 | D20: 440 | F20: 130/200 | G20: P1 | H20: 7
A21: DPC 403150230 | C21: CLV T-stuk 90° d.150*230+aftakking 2*80 | D21: 440 | F21: 150/230 | G21: P1 | H21: 8
A22: DPC 403180250 | C22: CLV T-stuk 90° d.180*250+aftakking 2*80 | D22: 440 | F22: 180/250 | G22: P1 | H22: 9
A23: DPC 403200350 | C23: CLV T-stuk 90° d.200*350+aftakking 2*80 | D23: 440 | F23: 200/350 | G23: P1 | H23: 10
A24: DPC 403230350 | C24: CLV T-stuk 90° d.230*350+aftakking 2*80 | D24: 440 | F24: 230/350 | G24: P1 | H24: 11
A25: DPC 403250400 | C25: CLV T-stuk 90° d.250*400+aftakking 2*80 | D25: 440 | F25: 250/400 | G25: P1 | H25: 12
A26: DPC 405100150 | C26: DPC-CLV Verstelbaar elt d.100*150 | D26: 0 | F26: 100/150 | G26: P1 | H26: 5
A27: DPC 405120180 | C27: DPC-CLV Verstelbaar elt d.120*180 | D27: 0 | F27: 120/180 | G27: P1 | H27: 6
A28: DPC 405130200 | C28: DPC-CLV Verstelbaar elt d.130*200 | D28: 0 | F28: 130/200 | G28: P1 | H28: 7
A29: DPC 405150230 | C29: DPC-CLV Verstelbaar elt d.150*230 | D29: 0 | F29: 150/230 | G29: P1 | H29: 8
A30: DPC 405180250 | C30: DPC-CLV Verstelbaar elt d.180*250 | D30: 0 | F30: 180/250 | G30: P1 | H30: 9
A31: DPC 405200350 | C31: DPC-CLV Verstelbaar elt d.200*350 | D31: 0 | F31: 200/350 | G31: P1 | H31: 10
A32: DPC 405230350 | C32: DPC-CLV Verstelbaar elt d.230*350 | D32: 0 | F32: 230/350 | G32: P1 | H32: 11
A33: DPC 405250400 | C33: DPC-CLV Verstelbaar elt d.250*400 | D33: 0 | F33: 250/400 | G33: P1 | H33: 12
A34: DPC 406100150 | C34: CLV bocht 45° d.100*150 | F34: 100/150 | G34: P1 | H34: 5
A35: DPC 406120180 | C35: CLV bocht 45° d.120*180 | F35: 120/180 | G35: P1 | H35: 6
A36: DPC 406130200 | C36: CLV bocht 45° d.130*200 | F36: 130/200 | G36: P1 | H36: 7
A37: DPC 406150230 | C37: CLV bocht 45° d.150*230 | F37: 150/230 | G37: P1 | H37: 8
A38: DPC 406180250 | C38: CLV bocht 45° d.180*250 | F38: 180/250 | G38: P1 | H38: 9
A39: DPC 406200350 | C39: CLV Bocht 45°d.200*350 | F39: 200/350 | G39: P1 | H39: 10
A40: DPC 406230350 | C40: CLV Bocht 45° d.230*350 | F40: 230/350 | G40: P1 | H40: 11
A41: DPC 406250400 | C41: CLV Bocht 45°d.250*400 | F41: 250400 | G41: P1 | H41: 12
A42: DPC 409100150 | C42: DPC-CLV aftap d.100*150 | D42: 255 | F42: 100/150 | G42: P1 | H42: 5
A43: DPC 409120180 | C43: DPC-CLV aftap d.120*180 | D43: 255 | F43: 120/180 | G43: P1 | H43: 6
A44: DPC 409130200 | C44: DPC-CLV aftap d.130*200 | D44: 255 | F44: 130/200 | G44: P1 | H44: 7
A45: DPC 409150230 | C45: DPC-CLV aftap d.150*230 | D45: 255 | F45: 150/230 | G45: P1 | H45: 8
A46: DPC 409180250 | C46: DPC-CLV aftap d.180*250 | D46: 255 | F46: 180/250 | G46: P1 | H46: 9
A47: DPC 409200350 | C47: DPC-CLV aftap d.200*350 | D47: 255 | F47: 200/350 | G47: P1 | H47: 10
A48: DPC 409230350 | C48: DPC-CLV aftap d.230*350 | D48: 255 | F48: 230/350 | G48: P1 | H48: 11
A49: DPC 409250400 | C49: DPC-CLV aftap d.250*400 | D49: 255 | F49: 250/400 | G49: P1 | H49: 12
A50: DPC 410100150 | C50: DPC-CLV Uitmonding d.100*150 | D50: =500-60 -> 440 | F50: 100/150 | G50: P1 | H50: 5
A51: DPC 410120180 | C51: DPC-CLV Uitmonding d.120*180 | D51: 440 | F51: 120/180 | G51: P1 | H51: 6
A52: DPC 410130200 | C52: DPC-CLV Uitmonding d.130*200 | D52: 440 | F52: 130/200 | G52: P1 | H52: 7
A53: DPC 410150230 | C53: DPC-CLV Uitmonding d.150*230 | D53: 440 | F53: 150/230 | G53: P1 | H53: 8
A54: DPC 410180250 | C54: DPC-CLV Uitmonding d.180*250 | D54: 440 | F54: 180/250 | G54: P1 | H54: 9
A55: DPC 410200350 | C55: DPC-CLV Uitmonding d.200*350 | D55: 440 | F55: 200/350 | G55: P1 | H55: 10
A56: DPC 410230350 | C56: DPC-CLV Uitmonding d.230*350 | D56: 440 | F56: 230/350 | G56: P1 | H56: 11
A57: DPC 410250400 | C57: DPC-CLV Uitmonding d.250*400 | D57: 440 | F57: 250/400 | G57: P1 | H57: 12
A58: DPC 412100150 | C58: DPC-CLV Muursteun d.100*150 | D58: =250-60 -> 190 | F58: 100/150 | G58: P1 | H58: 5
A59: DPC 412120180 | C59: DPC-CLV Muursteun d.120*180 | D59: 190 | F59: 120/180 | G59: P1 | H59: 6
A60: DPC 412130200 | C60: DPC-CLV Muursteun d.130*200 | D60: 190 | F60: 130/200 | G60: P1 | H60: 7
A61: DPC 412150230 | C61: DPC-CLV Muursteun d.150*230 | D61: 190 | F61: 150/230 | G61: P1 | H61: 8
A62: DPC 412180250 | C62: DPC-CLV Muursteun d.180*250 | D62: 190 | F62: 180/250 | G62: P1 | H62: 9
A63: DPC 412200350 | C63: DPC-CLV Muursteun d.200*350 | D63: 190 | F63: 200/350 | G63: P1 | H63: 10
A64: DPC 412230350 | C64: DPC-CLV Muursteun d.230*350 | D64: 190 | F64: 230/350 | G64: P1 | H64: 11
A65: DPC 412250400 | C65: DPC-CLV Muursteun d.250*400 | D65: 190 | F65: 250/400 | G65: P1 | H65: 12
A66: DPC 419100150 | C66: DPC Bocht 30° d.100*150 | F66: 100/150 | G66: P1 | H66: 5
A67: DPC 419120180 | C67: DPC Bocht 30° d.120*180 | F67: 120/180 | G67: P1 | H67: 6
A68: DPC 419130200 | C68: DPC Bocht 30° d.130*200 | F68: 130/200 | G68: P1 | H68: 7
A69: DPC 419150230 | C69: DPC Bocht 30° d.150*230 | F69: 150/230 | G69: P1 | H69: 8
A70: DPC 419180250 | C70: DPC Bocht 30° d.180*250 | F70: 180/250 | G70: P1 | H70: 9
A71: DPC 419200350 | C71: DPC Bocht 30° d.200*350 | F71: 200/350 | G71: P1 | H71: 10
A72: DPC 419230350 | C72: DPC Bocht 30° d.230*350 | F72: 230/350 | G72: P1 | H72: 11
A73: DPC 419250400 | C73: DPC Bocht 30° d.250*400 | F73: 250/400 | G73: P1 | H73: 12
A74: DPC 456100150 | C74: CLV T-st 87° d100*150+conc aftak. 60*100 | D74: =350-60 -> 290 | F74: 100/150 | G74: P1 | H74: 5
A75: DPC 456120180 | C75: CLV T-st. d120*180+conc. aftak. 60*100 | D75: 290 | F75: 120/180 | G75: P1 | H75: 6
A76: DPC 456130200 | C76: CLV T-st. d130*200+conc. aftak. 60*100 | D76: 290 | F76: 130/200 | G76: P1 | H76: 7
A77: DPC 456150230 | C77: CLV T-st. d150*230+conc. aftak. 60*100 | D77: 290 | F77: 150/230 | G77: P1 | H77: 8
A78: DPC 456180250 | C78: CLV T-st. d180*250+conc. aftak. 60*100 | D78: 290 | F78: 180/250 | G78: P1 | H78: 9
A79: DPC 456200350 | C79: CLV T-st. d200*350+conc. aftak. 60*100 | D79: 290 | F79: 200/350 | G79: P1 | H79: 10
A80: DPC 456230350 | C80: CLV T-st. d230*350+conc. aftak. 60*100 | D80: 290 | F80: 230/350 | G80: P1 | H80: 11
A81: DPC 456250400 | C81: CLV T-st. d250*400+conc. aftak. 60*100 | D81: 290 | F81: 250/400 | G81: P1 | H81: 12
A82: DPC 420100150 | C82: CLV T-st. d100*150+conc. aftak 80*125 | D82: =350-60 -> 290 | F82: 100/150 | G82: P1 | H82: 5
A83: DPC 420120180 | C83: CLV T-st. d120*180+conc. aftak. 80*125 | D83: 290 | F83: 120/180 | G83: P1 | H83: 6
A84: DPC 420130200 | C84: CLV T-st. d130*200+conc. aftak. 80*125 | D84: 290 | F84: 130/200 | G84: P1 | H84: 7
A85: DPC 420150230 | C85: CLV T-st. d150*230+conc. aftak. 80*125 | D85: 290 | F85: 150/230 | G85: P1 | H85: 8
A86: DPC 420180250 | C86: CLV T-st. d180*250+conc. aftak. 80*125 | D86: 290 | F86: 180/250 | G86: P1 | H86: 9
A87: DPC 420200350 | C87: CLV T-st. d200*350+conc. aftak. 80*125 | D87: 290 | F87: 200/350 | G87: P1 | H87: 10
A88: DPC 420230350 | C88: CLV T-st. d230*350+conc. aftak. 80*125 | D88: 290 | F88: 230/350 | G88: P1 | H88: 11
A89: DPC 420250400 | C89: CLV T-st. d250*400+conc. aftak. 80*125 | D89: 290 | F89: 250/400 | G89: P1 | H89: 12
A90: DPC 428100150 | C90: CLV T-st. d100*150+2 aansluitingen d80 | D90: =500-60 -> 440 | F90: 100/150 | G90: P1 | H90: 5
A91: DPC 428120180 | C91: CLV T-st. d120*180+2 aansluitingen d80 | D91: 440 | F91: 120/180 | G91: P1 | H91: 6
A92: DPC 428130200 | C92: CLV T-st. d130*200+2 aansluitingen d80 | D92: 440 | F92: 130/200 | G92: P1 | H92: 7
A93: DPC 428150230 | C93: CLV T-st. d150*230+2 aansluitingen d80 | D93: 440 | F93: 150/230 | G93: P1 | H93: 8
A94: DPC 428180250 | C94: CLV T-st. d180*250+2 aansluitingen d80 | D94: 440 | F94: 180/250 | G94: P1 | H94: 9
A95: DPC 428200350 | C95: CLV T-st. d200*350+2 aansluitingen d80 | D95: 440 | F95: 200/350 | G95: P1 | H95: 10
A96: DPC 428230350 | C96: CLV T-st. d230*350+2 aansluitingen d80 | D96: 440 | F96: 230/350 | G96: P1 | H96: 11
A97: DPC 428250400 | C97: CLV T-st. d250*400+2 aansluitingen d80 | D97: 440 | F97: 250/400 | G97: P1 | H97: 12
A98: DPC 431100150 | C98: DPC-CLV Verlengpijp Lg 250 d.100*150 | D98: =250-60 -> 190 | F98: 100/150 | G98: P1 | H98: 5
A99: DPC 431120180 | C99: DPC-CLV Verlengpijp Lg 250 d.120*180 | D99: 190 | F99: 120/180 | G99: P1 | H99: 6
A100: DPC 431130200 | C100: DPC-CLV Verlengpijp Lg 250 d.130*200 | D100: 190 | F100: 130/200 | G100: P1 | H100: 7
A101: DPC 431150230 | C101: DPC-CLV Verlengpijp Lg 250 d.150*230 | D101: 190 | F101: 150/230 | G101: P1 | H101: 8
A102: DPC 431180250 | C102: DPC-CLV Verlengpijp Lg 250 d.180*250 | D102: 190 | F102: 180/250 | G102: P1 | H102: 9
A103: DPC 431200350 | C103: DPC-CLV Verlengpijp Lg 250 d.200*350 | D103: 190 | F103: 200/350 | G103: P1 | H103: 10
A104: DPC 431230350 | C104: DPC-CLV Verlengpijp Lg 250 d.230*350 | D104: 190 | F104: 230/350 | G104: P1 | H104: 11
A105: DPC 431250400 | C105: DPC-CLV Verlengpijp Lg 250 d.250*400 | D105: 190 | F105: 250/400 | G105: P1 | H105: 12
A106: DPC 434100150 | C106: DPC-CLV Inspectie elt d.100*150 | D106: =325-60 -> 265 | F106: 100/150 | G106: P1 | H106: 5
A107: DPC 434120180 | C107: DPC-CLV Inspectie elt d.120*180 | D107: =355-60 -> 295 | F107: 120/180 | G107: P1 | H107: 6
A108: DPC 434130200 | C108: DPC-CLV Inspectie elt d.130*200 | D108: =400-60 -> 340 | F108: 130/200 | G108: P1 | H108: 7
A109: DPC 434150230 | C109: DPC-CLV Inspectie elt d.150*230 | D109: =400-60 -> 340 | F109: 150/230 | G109: P1 | H109: 8
A110: DPC 434180250 | C110: DPC-CLV Inspectie elt d.180*250 | D110: =450-60 -> 390 | F110: 180/250 | G110: P1 | H110: 9
A111: DPC 434200350 | C111: DPC-CLV Inspectie elt d.200*350 | D111: =550-60 -> 490 | F111: 200/350 | G111: P1 | H111: 10
A112: DPC 434230350 | C112: DPC-CLV Inspectie elt d.230*350 | D112: =550-60 -> 490 | F112: 230/350 | G112: P1 | H112: 11
A113: DPC 434250400 | C113: DPC-CLV Inspectie elt d.250*400 | D113: =600-60 -> 540 | F113: 250/400 | G113: P1 | H113: 12
A114: DPC 445100150 | C114: CLV T-st. d100*150+2 conc. aftak 60*100 | D114: =350-60 -> 290 | F114: 100/150 | G114: P1 | H114: 5
A115: DPC 445120180 | C115: CLV T-st. d120*180+2 conc. aftak 60*100 | D115: 290 | F115: 120/180 | G115: P1 | H115: 6
A116: DPC 445130200 | C116: CLV T-st. d130*200+2 conc. aftak 60*100 | D116: 290 | F116: 130/200 | G116: P1 | H116: 7
A117: DPC 445150230 | C117: CLV T-st. d150*230+2 conc. aftak 60*100 | D117: 290 | F117: 150/230 | G117: P1 | H117: 8
A118: DPC 445180250 | C118: CLV T-st. d180*250+2 conc. Aftak 60*100 | D118: 290 | F118: 180/250 | G118: P1 | H118: 9
A119: DPC 445200350 | C119: CLV T-st. d200*350+2 conc. aftak 60*100 | D119: 290 | F119: 200/350 | G119: P1 | H119: 10
A120: DPC 445230350 | C120: CLV T-st. d230*350+2 conc. aftak 60*100 | D120: 290 | F120: 230/350 | G120: P1 | H120: 11
A121: DPC 445250400 | C121: CLV T-st. d250*400+2 conc. aftak 60*100 | D121: 290 | F121: 250/400 | G121: P1 | H121: 12
A122: DPC 437100150 | C122: CLV T-st. d100*150+2 conc. aftak 80*125 | D122: =350-60 -> 290 | F122: 100/150 | G122: P1 | H122: 5
A123: DPC 437120180 | C123: CLV T-st. d120*180+2 conc. aftak 80*125 | D123: 290 | F123: 120/180 | G123: P1 | H123: 6
A124: DPC 437130200 | C124: CLV T-st. d130*200+2 conc. aftak 80*125 | D124: 290 | F124: 130/200 | G124: P1 | H124: 7
A125: DPC 437150230 | C125: CLV T-st. d150*230+2 conc. aftak 80*125 | D125: 290 | F125: 150/230 | G125: P1 | H125: 8
A126: DPC 437180250 | C126: CLV T-st. d180*250+2 conc. aftak 80*125 | D126: 290 | F126: 180/250 | G126: P1 | H126: 9
A127: DPC 437200350 | C127: CLV T-st. d200*350+2 conc. aftak 80*125 | D127: 290 | F127: 200/350 | G127: P1 | H127: 10
A128: DPC 437230350 | C128: CLV T-st. d230*350+2 conc. aftak 80*125 | D128: 290 | F128: 230/350 | G128: P1 | H128: 11
A129: DPC 437250400 | C129: CLV T-st. d250*400+2 conc. aftak 80*125 | D129: 290 | F129: 250/400 | G129: P1 | H129: 12
A130: DPC 469100150 | C130: DPC-CLV Grondsteun+purge+sifon d.100*150 | D130: 450 | F130: 100/150 | G130: P1 | H130: 5
A131: DPC 469120180 | C131: DPC-CLV Grondsteun+purge+sifon d.120*180 | D131: 450 | F131: 120/180 | G131: P1 | H131: 6
A132: DPC 469130200 | C132: DPC-CLV Grondsteun+purge+sifon d.130*200 | D132: 450 | F132: 130/200 | G132: P1 | H132: 7
A133: DPC 469150230 | C133: DPC-CLV Grondsteun+purge+sifon d.150*230 | D133: 450 | F133: 150/230 | G133: P1 | H133: 8
A134: DPC 469180250 | C134: DPC-CLV Grondsteun+purge+sifon d.180*250 | D134: 450 | F134: 180/250 | G134: P1 | H134: 9
A135: DPC 469200350 | C135: DPC-CLV Grondsteun+purge+sifon d.200*350 | D135: 450 | F135: 200/350 | G135: P1 | H135: 10
A136: DPC 469230350 | C136: DPC-CLV Grondsteun+purge+sifon d.230*350 | D136: 450 | F136: 230/350 | G136: P1 | H136: 11
A137: DPC 469250400 | C137: DPC-CLV Grondsteun+purge+sifon d.250*400 | D137: 450 | F137: 250/400 | G137: P1 | H137: 12
A138: DPC 4111100150 | C138: CLV/DPC bocht 87° d.100*150 | F138: 100/150 | G138: P1 | H138: 5
A139: DPC 4111120180 | C139: CLV/DPC bocht 87° d.120*180 | F139: 120/180 | G139: P1 | H139: 6
A140: DPC 4111130200 | C140: CLV/DPC Bocht 87° d.130*200 | F140: 130/200 | G140: P1 | H140: 7
A141: DPC 4111150230 | C141: CLV/DPC bocht 87° d.150*230 | F141: 150/230 | G141: P1 | H141: 8
A142: DPC 4111180250 | C142: CLV/DPC bocht 87° d.180*250 | F142: 180/250 | G142: P1 | H142: 9
A143: DPC 4111200350 | C143: CLV/DPC bocht 87° d.200*350 | F143: 200/350 | G143: P1 | H143: 10
A144: DPC 4111230350 | C144: CLV/DPC bocht 87° d.230*350 | F144: 230/350 | G144: P1 | H144: 11
A145: DPC 4111250400 | C145: CLV/DPC bocht 87° d.250*400 | F145: 250/400 | G145: P1 | H145: 12
A146: DPC 353100150 | C146: SPG DDV plat dak d.150 | F146: 100/150 | H146: 5
A147: DPC 353120180 | C147: SPG DDV plat dak d.180 | F147: 120/180 | H147: 6
A148: DPC 353130200 | C148: SPG DDV plat dak d.200 | F148: 130/200 | H148: 7
A149: DPC 353150230 | C149: SP DDV plat dak d.230 | F149: 150/230 | H149: 8
A150: DPC 353180250 | C150: SP DDV plat dak d.250 | F150: 180/250 | H150: 9
A151: DPC 353200350 | C151: SP DDV plat dak d.350 | F151: 200/350 | H151: 10
A152: DPC 353230350 | C152: SP DDV plat dak d.350 | F152: 230/350 | H152: 11
A153: DPC 353250400 | C153: SP DDV plat dak d.400 | F153: 250/400 | H153: 12
A154: DPC 356100150 | C154: Stormkraag RVS DP100/SPG150 | F154: 100/150 | H154: 5
A155: DPC 356120180 | C155: Stormkraag RVS DP130/SPG180 | F155: 120/180 | H155: 6
A156: DPC 356130200 | C156: Stormkraag RVS DP150/SPG200 | F156: 130/200 | H156: 7
A157: DPC 356150230 | C157: Stormkraag RVS DP180/SPG230 | F157: 150/230 | H157: 8
A158: DPC 356180250 | C158: Stormkraag RVS DP200/SPG250 | F158: 180/250 | H158: 9
A159: DPC 356200350 | C159: Stormkraag RVS DP300/SPG350 | F159: 200/350 | H159: 10
A160: DPC 356230350 | C160: Stormkraag RVS DP300/SPG350 | F160: 230/350 | H160: 11
A161: DPC 356250400 | C161: Stormkraag RVS SPG400 | F161: 250/400 | H161: 12
A162: DPC 731100150 | C162: Muurbeugel DP100/SPG150 | F162: 100/150 | H162: 5
A163: DPC 731120180 | C163: Muurbeugel DP130/SPG180 | F163: 120/180 | H163: 6
A164: DPC 731130200 | C164: Muurbeugel DP150/SPG200 | F164: 130/200 | H164: 7
A165: DPC 731150230 | C165: Muurbeugel DP180/SPG230 | F165: 150/230 | H165: 8
A166: DPC 731180250 | C166: Muurbeugel DP200/SP250 | F166: 180/250 | H166: 9
A167: DPC 731200350 | C167: Muurbeugel DP300/SP350 | F167: 200/350 | H167: 10
A168: DPC 731230350 | C168: Muurbeugel DP300/SP350 | F168: 230/350 | H168: 11
A169: DPC 731250400 | C169: Muurbeugel DP350/SP400 | F169: 250/400 | H169: 12
A170: ACF FG1080 | C170: Safety Bracket SPG d.80 | F170: 80 | H170: 5
A171: ACF FG1100 | C171: Safety Bracket SPG d.100 | F171: 100 | H171: 6
A172: ACF FG1120 | C172: Safety Bracket SPG d.120 | F172: 120 | H172: 7
A173: ACF FG1130 | C173: Safety Bracket SPG d.130 | F173: 130 | H173: 8
A174: ACF FG1140 | C174: Safety bracket SPG d.140 | F174: 140 | G174: mee in de prijzen van de DPC stukken | H174: 9
A175: ACF FG1100150 | C175: Safety bracket SPG d.100/150 | F175: 100/150 | H175: 10
A176: ACF FG1120180 | C176: Safety bracket SPG d.120/180 | F176: 120/180 | H176: 11
A177: ACF FG1130200 | C177: Safety bracket SPG d.130/200 | F177: 130/200 | H177: 12
A178: ACF FG1180250 | C178: safety bracket SP d.180/250 | F178: 180/250 | H178: 5
A179: ACF FG1300 | C179: Safety bracket SP d.300 | F179: 300 | H179: 6
A180: ACF FG1200350 | C180: Safety bracket SP d.200/350 | F180: 200/350 | H180: 7
A181: ACF FG1230350 | C181: SP safety bracket d.230/350 | F181: 230/350 | H181: 8
A182: ACF FG1250400 | C182: SP safety bracket d.250/400 | F182: 250/400 | H182: 9
A183: DPC 4181130200 | C183: DP 25 130*180 / DPC adapter d.130*200 | F183: 130/200 | H183: 100
A184: DPC 4181150230 | C184: DP 25 150*200 / DPC adapter d.150*230 | F184: 150/230 | H184: 120

Sheet Data (hidden)
N1: Accountmanager
B2: Diameter | C2: Ø100150 | D2: Ø120180 | E2: Ø130200 | F2: Ø150230 | G2: Ø180250 | H2: Ø200350 | I2: Ø230350 | J2: Ø250400 | L2: Loos | N2: Accountmanager 1 | P2: Aansluiting1 | R2: Aansluiting2 | T2: Verdiepingen
L3: 0 | N3: Accountmanager 2 | T3: 0
B4: Ø100150 | C4: 2 | D4: 3 | E4: 4 | F4: 4 | G4: 5 | H4: 7 | I4: 8 | J4: 10 | L4: 1 | N4: Accountmanager 3 | P4: 60/100 | R4: Enkel | T4: 1
B5: Ø120180 | C5: 3 | D5: 4 | E5: 5 | F5: 5 | G5: 6 | H5: 8 | I5: 9 | J5: 11 | L5: 2 | N5: Accountmanager 4 | P5: 80/125 | R5: Dubbel | T5: 2
B6: Ø130200 | E6: 6 | F6: 6 | G6: 7 | H6: 9 | I6: 10 | J6: 12 | L6: 3 | N6: Accountmanager 5 | P6: 80/80 | T6: 3
B7: Ø150230 | E7: 7 | F7: 7 | G7: 8 | H7: 10 | I7: 11 | J7: 13 | L7: 4 | N7: Accountmanager 6 | T7: 4
B8: Ø180250 | F8: 8 | G8: 9 | H8: 11 | I8: 12 | J8: 14 | N8: Accountmanager 7 | T8: 5
B9: Ø200350 | G9: 10 | H9: 12 | J9: 15 | N9: Accountmanager 8 | T9: 6
B10: Ø230350 | H10: 13 | J10: 16 | N10: Accountmanager 9 | T10: 7
B11: Ø250400 | T11: 8
T12: 9
T13: 10
T14: 11
T15: 12
